bitfinex/quotes_SOLUSD_20241127
["timestamp","ask_amount","ask_price","bid_price","bid_amount"]
[1732720186150,26.285784,239.15,239.09,12.56272618]
[1732720186362,23.776884,239.13,239.05,108.15832618]
[1732720186553,23.776884,239.13,239.05,34.45832618]
[1732720186761,23.776884,239.11,239.01,74.53427652]
[1732720187067,23.776884,239.11,239.06,12.56272618]
[1732720187368,23.776884,239.13,239.06,12.56272618]
[1732720187741,2.5092,239.12,239.06,12.56272618]
[1732720188164,23.776884,239.11,239.06,12.56272618]
[1732720189653,26.285884,239.13,239.06,12.56272618]
[1732720190062,23.776884,239.14,239.08,12.56272618]
[1732720190272,2.509,239.14,239.1,12.56272618]
[1732720190463,2.5087,239.16,239.1,12.56272618]
[1732720190662,12.56272618,239.16,239.05,0.83413629]
[1732720190870,2.5085,239.18,239.13,12.56272618]
[1732720191163,21.34262618,239.18,239.09,12.56272618]
[1732720191846,15.07122618,239.18,239.1,0.83416319]
[1732720192047,15.07122618,239.18,239.11,12.56272618]
[1732720192258,23.776884,239.17,239.11,12.56272618]
[1732720192455,23.776884,239.17,239.09,12.56272618]
[1732720192777,23.776884,239.17,239.1,0.83413209]
[1732720193069,12.56272618,239.16,239.1,0.83413209]
[1732720193268,12.56272618,239.14,239.05,12.56272618]
[1732720193454,23.776884,239.13,239.05,12.56272618]
[1732720193765,23.776884,239.13,239.09,12.56272618]
[1732720194755,23.776884,239.16,239.1,0.83418871]
[1732720194957,23.776884,239.16,239.11,12.56272618]
[1732720195181,2.5086,239.17,239.11,12.56272618]
[1732720195471,12.56272618,239.2,239.13,12.56272618]
[1732720195673,2.5084,239.19,239.14,0.83403677]
[1732720195970,12.56272618,239.22,239.15,12.56272618]
[1732720196184,2.5082,239.21,239.16,0.83395964]
[1732720196371,2.508,239.23,239.17,12.56272618]
[1732720196665,18.83202618,239.26,239.18,0.83385667]
[1732720196666,2.5079,239.25,239.18,0.83385667]
[1732720197557,12.56272618,239.24,239.18,0.83385667]
[1732720197747,12.56272618,239.22,239.15,12.56272618]
[1732720197954,12.56272618,239.22,239.16,0.83394755]
[1732720198365,2.508,239.23,239.16,0.83394755]
[1732720198861,23.776884,239.22,239.16,0.83394755]
[1732720200058,26.284884,239.23,239.16,0.83394755]
[1732720200272,26.284884,239.23,239.17,12.56272618]
[1732720200486,26.284884,239.23,239.17,13.39662735]
[1732720200782,2.508,239.23,239.17,13.39662735]
[1732720200952,20.0,239.25,239.19,12.56272618]
[1732720201157,2.5077,239.26,239.19,13.39651621]
[1732720201377,12.56272618,239.3,239.23,12.56272618]
[1732720201576,15.07012618,239.3,239.23,13.39634872]
[1732720201883,12.56272618,239.28,239.21,13.39641436]
[1732720202177,12.56272618,239.26,239.2,15.0736]
[1732720202380,2.5076,239.27,239.2,15.90737347]
[1732720202576,2.5075,239.29,239.21,12.56272618]
[1732720202776,2.5075,239.29,239.22,0.83362841]
[1732720203078,15.07002618,239.3,239.23,12.56272618]
[1732720203292,15.07002618,239.3,239.22,0.83362841]
[1732720203458,12.56272618,239.28,239.22,0.83362841]
[1732720203782,12.56272618,239.28,239.21,79.7413]
[1732720203987,2.5078,239.25,239.2,15.0736]
[1732720204482,2.5078,239.25,239.17,73.7]
[1732720204483,12.56272618,239.24,239.17,73.7]
[1732720205014,12.56272618,239.24,239.15,92.33742618]
[1732720205186,12.56272618,239.24,239.16,0.83387727]
[1732720205999,12.56272618,239.26,239.17,12.56272618]
[1732720206210,12.5335,239.36,239.16,0.83387727]
[1732720206211,12.56272618,239.3,239.21,12.56272618]
[1732720206413,2.5073,239.3,239.23,12.56272618]
[1732720206709,15.07002618,239.3,239.22,0.83366696]
[1732720207208,12.56272618,239.28,239.22,0.83366696]
[1732720208288,2.5076,239.27,239.22,0.83366696]
[1732720209486,2.5076,239.27,239.19,13.39646552]
[1732720209684,12.56272618,239.26,239.18,73.7]
[1732720210106,12.56272618,239.22,239.15,92.33742618]
[1732720210309,12.56272618,239.22,239.15,79.7747]
[1732720210818,23.776884,239.26,239.16,0.83398401]
[1732720210819,20.0,239.21,239.16,0.83398401]
[1732720211006,23.776884,239.26,239.17,12.56272618]
[1732720211196,23.776884,239.26,239.19,12.56272618]
[1732720211894,21.33932618,239.27,239.18,0.83381197]
[1732720211895,2.5076,239.27,239.21,12.56272618]
[1732720212095,2.5076,239.27,239.22,0.83372584]
[1732720212293,15.07032618,239.27,239.19,13.39645265]
[1732720212909,2.5075,239.28,239.19,13.39645265]
[1732720213208,12.56272618,239.25,239.19,0.83372647]
[1732720213412,12.56272618,239.23,239.18,73.7]
[1732720214112,20.0,239.22,239.17,12.56272618]
[1732720215499,20.0,239.22,239.15,18.63742618]
[1732720216318,15.07092618,239.21,239.14,16.42298243]
[1732720216519,15.07092618,239.21,239.13,12.56272618]
[1732720217316,20.0,239.18,239.11,12.56272618]
[1732720217613,12.56272618,239.19,239.11,12.56272618]
[1732720217805,12.56272618,239.19,239.12,0.83409357]
[1732720218214,2.5085,239.18,239.12,0.83409357]
[1732720218401,22.5085,239.18,239.12,0.83409357]
[1732720218926,2.5085,239.18,239.12,0.83409357]
[1732720219400,15.07112618,239.19,239.12,0.83409357]
[1732720219611,12.56272618,239.17,239.09,6.5562]
[1732720219794,15.07112618,239.19,239.11,12.56272618]
[1732720220006,15.07112618,239.19,239.11,13.39679576]
[1732720220316,12.56272618,239.15,239.08,16.4476]
[1732720220526,12.56272618,239.13,239.06,12.56272618]
[1732720220819,12.56272618,239.11,239.03,22.9856]
[1732720221001,12.56272618,239.11,239.02,13.39700601]
[1732720221196,12.56272618,239.09,239.02,13.39700601]
[1732720221814,12.56272618,239.11,239.02,13.39700601]
[1732720222394,2.5094,239.1,239.02,13.39700601]
[1732720222809,15.07212618,239.1,239.02,13.39700601]
[1732720223211,15.07212618,239.1,239.03,12.56272618]
[1732720224222,15.07212618,239.1,239.02,13.39710275]
[1732720225103,12.56272618,239.09,239.02,0.83437657]
[1732720226115,2.5096,239.08,239.02,0.83437657]
[1732720227303,12.56272618,239.04,238.99,1.32586529]
[1732720227506,12.56272618,239.02,238.99,1.32586529]
[1732720227717,12.56272618,239.0,238.99,0.4914643]
[1732720227923,12.56272618,239.01,238.99,0.4914643]
[1732720228413,12.56272618,239.02,238.99,0.4914643]
[1732720228924,12.56272618,239.06,238.99,13.05419048]
[1732720229099,12.56272618,239.09,239.02,12.56272618]
[1732720229300,12.56272618,239.1,239.03,0.83441313]
[1732720229517,20.0,239.07,239.03,0.83441313]
[1732720229824,12.56272618,239.14,239.06,12.56272618]
[1732720230009,2.5071,239.32,239.09,22.5936]
[1732720230210,12.56272618,239.17,239.1,0.83388793]
[1732720230407,5.0,239.27,239.1,0.83413446]
[1732720230608,6.4198,239.24,239.04,6.0096]
[1732720230921,12.56272618,239.13,239.07,12.56272618]
[1732720231124,12.56272618,239.13,239.05,12.56272618]
[1732720231332,5.0,239.23,239.06,0.83426448]
[1732720231333,12.56272618,239.11,239.06,0.83426448]
[1732720231519,12.56272618,239.09,239.04,6.0096]
[1732720231707,12.56272618,239.07,239.03,16.584]
[1732720232605,12.56272618,239.05,239.03,16.584]
[1732720233327,12.56272618,239.05,239.0,0.83438301]
[1732720235111,12.56272618,239.01,238.99,0.4914643]
[1732720235411,6.2732,239.12,238.99,0.4914643]
[1732720235412,12.56272618,239.0,238.99,0.4914643]
[1732720237715,15.07302618,239.02,238.99,0.4914643]
[1732720238026,12.56272618,239.0,238.99,0.4914643]
[1732720239643,15.07312618,239.0,238.99,0.4914643]
[1732720242536,12.56272618,239.02,238.99,0.4914643]
[1732720242712,15.07302618,239.02,238.99,0.4914643]
[1732720244038,20.0,239.01,238.99,0.4914643]
[1732720245816,15.07212618,239.1,238.99,86.75419048]
[1732720246022,15.07212618,239.1,239.03,12.56272618]
[1732720246318,2.5094,239.1,239.03,12.56272618]
[1732720246631,2.5094,239.1,239.04,0.83430259]
[1732720248036,22.5095,239.09,239.04,0.83430259]
[1732720248434,2.5095,239.09,239.04,0.83430259]
[1732720248932,2.5094,239.1,239.05,12.56272618]
[1732720249237,2.5087,239.16,239.09,12.56272618]
[1732720249421,2.5087,239.16,239.1,0.83410375]
[1732720249617,12.56272618,239.18,239.11,12.56272618]
[1732720249842,15.07112618,239.2,239.13,12.56272618]
[1732720250047,12.56272618,239.27,239.19,12.56272618]
[1732720250257,12.56272618,239.27,239.2,0.83377988]
[1732720251438,20.0,239.24,239.2,0.83377988]
[1732720251826,20.0,239.22,239.17,21.8708]
[1732720252229,20.0,239.22,239.18,12.56272618]
[1732720252428,22.5079,239.24,239.19,0.83381102]
[1732720252743,22.5079,239.24,239.19,20.97224165]
[1732720253127,22.5079,239.24,239.19,0.83381102]
[1732720253329,22.5079,239.24,239.18,0.83381127]
[1732720253728,2.5079,239.24,239.18,0.83381127]
[1732720255230,20.13843063,239.23,239.17,21.8708]
[1732720256251,20.13843063,239.25,239.18,0.83387922]
[1732720256548,2.5077,239.26,239.19,20.13843063]
[1732720256919,2.5077,239.26,239.2,0.83379485]
[1732720257522,2.5077,239.26,239.21,20.13843063]
[1732720257731,22.5077,239.26,239.22,0.83371994]
[1732720258036,22.5077,239.26,239.21,20.13843063]
[1732720258737,22.5077,239.26,239.2,0.83371994]
[1732720258938,20.0,239.23,239.21,0.83374639]
[1732720259148,20.0,239.23,239.2,0.83378987]
[1732720259329,20.0,239.23,239.19,20.13843063]
[1732720259534,20.0,239.24,239.19,20.13843063]
[1732720259935,22.5079,239.24,239.19,20.13843063]
[1732720260552,22.5079,239.24,239.18,0.83377267]
[1732720261932,20.0,239.24,239.19,20.13843063]
[1732720262151,20.0,239.24,239.18,0.83377267]
[1732720262152,2.5076,239.28,239.21,20.13843063]
[1732720262455,2.5073,239.3,239.23,20.13843063]
[1732720262750,2.5073,239.3,239.24,0.83360688]
[1732720263335,20.13843063,239.29,239.24,0.83360688]
[1732720263841,2.5073,239.3,239.22,0.83363473]
[1732720263842,20.13843063,239.27,239.22,0.83363473]
[1732720264031,2.5077,239.26,239.22,0.83363473]
[1732720264547,2.5077,239.26,239.17,95.5708]
[1732720264548,20.13843063,239.23,239.18,0.83371214]
[1732720265641,20.13843063,239.25,239.18,0.83371214]
[1732720266247,2.5079,239.24,239.18,0.83371214]
[1732720266637,20.13843063,239.23,239.18,0.83371214]
[1732720267736,22.64643063,239.23,239.18,0.83371214]
[1732720268151,22.64643063,239.23,239.17,21.8708]
[1732720268532,20.13843063,239.21,239.17,21.8708]
[1732720269056,22.64643063,239.23,239.17,21.8708]
[1732720269755,2.508,239.23,239.18,0.83385086]
[1732720269945,20.13843063,239.26,239.18,20.97228149]
[1732720270137,20.0,239.25,239.2,20.13843063]
[1732720270338,20.0,239.25,239.2,0.83375004]
[1732720271231,20.13843063,239.24,239.18,73.7]
[1732720271436,20.13843063,239.22,239.17,21.8708]
[1732720271646,2.5082,239.21,239.17,21.8708]
[1732720271837,2.5082,239.21,239.18,0.83386577]
[1732720272152,2.5081,239.23,239.18,20.9722964]
[1732720272336,2.5081,239.23,239.18,0.83386577]
[1732720273144,20.13843063,239.22,239.17,21.8708]
[1732720273961,2.5082,239.21,239.17,21.8708]
[1732720274351,15.09859089,239.21,239.17,21.8708]
[1732720274549,15.09859089,239.21,239.09,1.77910193]
[1732720274550,12.59039089,239.19,239.12,22.3579]
[1732720274766,15.09859089,239.21,239.13,13.42435333]
[1732720276350,22.2983,239.17,239.13,0.83396244]
[1732720276550,22.2983,239.17,238.95,81.46093545]
[1732720276551,20.0,239.1,239.01,0.83406989]
[1732720276750,20.0,239.1,239.01,13.42446078]
[1732720276751,12.59039089,239.09,239.01,13.42446078]
[1732720278063,2.5096,239.08,239.01,13.42446078]
[1732720278251,20.0,239.08,239.03,12.59039089]
[1732720278447,22.5094,239.1,239.04,0.83432755]
[1732720279345,22.5094,239.1,239.05,0.83429023]
[1732720280052,20.0,239.03,238.99,0.4914643]
[1732720280363,12.59039089,239.04,238.99,0.4914643]
[1732720280542,12.59039089,239.02,238.99,0.4914643]
[1732720281167,12.59039089,239.06,238.99,0.4914643]
[1732720281350,20.0,239.03,239.0,0.83443465]
[1732720282044,2.5099,239.05,239.0,0.83443465]
[1732720282855,2.5095,239.09,239.02,12.59039089]
[1732720283047,2.5095,239.09,239.03,0.8343639]
[1732720284144,20.0,239.07,239.03,0.8343639]
[1732720284545,12.59039089,239.12,239.04,12.59039089]
[1732720284745,20.0,239.09,239.05,0.83421286]
[1732720284953,15.09959089,239.12,239.05,0.83421286]
[1732720285664,15.7424,239.17,239.05,0.83421286]
[1732720285665,12.59039089,239.1,239.05,0.83421286]
[1732720285845,12.59039089,239.12,239.05,0.83421286]
[1732720286046,2.5093,239.11,239.05,0.83421286]
[1732720286281,20.0,239.09,239.05,0.83421286]
[1732720287957,6.2716,239.17,239.05,0.83421286]
[1732720287958,2.5094,239.1,239.05,0.83421286]
[1732720289253,15.09949089,239.13,239.06,12.59039089]
[1732720289461,20.0,239.1,239.07,0.83418751]
[1732720289970,2.5091,239.13,239.07,0.83418751]
[1732720290142,20.0,239.12,239.07,0.83418751]
[1732720290647,12.59039089,239.15,239.08,12.59039089]
[1732720290854,12.59039089,239.15,239.09,0.83410388]
[1732720291048,12.59039089,239.15,239.08,12.59039089]
[1732720291264,12.59039089,239.15,239.06,13.42453829]
[1732720291459,20.0,239.04,238.99,0.4914643]
[1732720291662,12.59039089,239.07,238.99,0.4914643]
[1732720291861,20.0,239.06,239.01,12.59039089]
[1732720292050,20.0,239.06,238.99,75.02597633]
[1732720292051,20.0,239.06,239.0,0.83437866]
[1732720292252,12.59039089,239.05,239.0,0.83437866]
[1732720292466,12.59039089,239.05,238.99,0.4914643]
[1732720292665,12.59039089,239.03,238.99,0.4914643]
[1732720293254,20.0,239.06,238.99,0.4914643]
[1732720293255,12.59039089,239.05,238.99,0.4914643]
[1732720293574,12.59039089,239.05,239.0,0.83446773]
[1732720293989,15.10029089,239.05,239.0,0.83446773]
[1732720294271,2.5099,239.05,239.0,0.83446773]
[1732720294470,15.10029089,239.05,239.0,0.83446773]
[1732720294679,15.10029089,239.05,238.99,0.4914643]
[1732720296576,12.59039089,239.03,238.99,0.4914643]
[1732720297374,12.59039089,239.01,238.99,0.4914643]
[1732720297673,2.5104,239.0,238.99,0.4914643]
[1732720299852,12.59039089,239.03,238.99,0.4914643]
[1732720301575,12.59039089,239.01,238.99,0.4914643]
[1732720301775,2.5104,239.0,238.99,0.4914643]
[1732720303788,12.59039089,239.03,238.99,0.4914643]
[1732720303991,2.5103,239.02,238.99,0.4914643]
[1732720304697,2.5101,239.04,238.99,0.4914643]
[1732720304983,12.59039089,239.01,238.99,0.4914643]
[1732720305887,26.287284,239.0,238.99,0.4914643]
[1732720306324,26.287284,239.0,238.99,6.43e-05]
[1732720307378,20.0,238.97,238.86,23.0062]
[1732720307684,12.59039089,238.9,238.86,23.0062]
[1732720307902,15.10189089,238.9,238.86,23.0062]
[1732720308091,15.10189089,238.9,238.83,73.7]
[1732720308387,15.10189089,238.9,238.84,0.83504445]
[1732720308388,20.0,238.89,238.84,0.83504445]
[1732720310162,2.5114,238.91,238.84,0.83504445]
[1732720311066,32.59039089,238.95,238.87,12.59039089]
[1732720311371,12.59039089,238.93,238.85,86.29039089]
[1732720311566,20.0,238.9,238.85,87.12533408]
[1732720312581,20.0,238.9,238.85,86.29039089]
[1732720313086,22.5115,238.9,238.85,73.7]
[1732720313470,22.5115,238.9,238.85,74.53500842]
[1732720313664,20.0,238.9,238.85,87.12539931]
[1732720314272,20.0,238.9,238.85,74.53500842]
[1732720314492,22.5115,238.9,238.86,0.83492083]
[1732720314788,20.0,238.9,238.86,0.83492083]
[1732720314995,20.0,238.88,238.84,0.8349813]
[1732720315700,20.0,238.86,238.84,0.8349813]
[1732720315994,20.0,238.86,238.83,0.83503462]
[1732720316195,20.0,238.88,238.83,0.83503462]
[1732720318189,20.0,238.86,238.83,0.83503462]
[1732720318384,2.5117,238.88,238.81,74.53507369]
[1732720319097,20.0,238.84,238.81,0.83507369]
[1732720319410,20.0,238.84,238.77,12.59039089]
[1732720319411,20.0,238.84,238.78,0.83518976]
[1732720319705,22.5122,238.84,238.78,0.83518976]
[1732720322787,12.59039089,238.83,238.76,74.53520439]
[1732720323097,12.59039089,238.78,238.76,0.83520439]
[1732720323301,12.59039089,238.78,238.75,0.4914643]
[1732720323603,12.59039089,238.76,238.75,0.4914643]
[1732720324709,15.10329089,238.76,238.75,0.4914643]
[1732720326313,38.88017489,238.76,238.75,0.4914643]
[1732720326484,22.5129,238.76,238.75,0.4914643]
[1732720326680,35.10329089,238.76,238.75,0.4914643]
[1732720327182,58.88017489,238.76,238.75,0.4914643]
[1732720327982,20.0,238.72,238.62,6.1337]
[1732720328178,12.59039089,238.66,238.6,74.53575874]
[1732720328391,12.59039089,238.64,238.58,15.4794]
[1732720328891,15.10469089,238.64,238.58,15.4794]
[1732720329291,12.59039089,238.64,238.58,15.4794]
[1732720329495,20.0,238.68,238.59,13.4262745]
[1732720329694,32.59039089,238.68,238.59,13.4262745]
[1732720329911,12.59039089,238.64,238.59,74.53588361]
[1732720330402,43.776884,238.67,238.55,6.3679]
[1732720330589,12.59039089,238.59,238.52,0.83599441]
[1732720330782,12.59039089,238.61,238.52,0.83599441]
[1732720330987,20.0,238.62,238.56,12.59039089]
[1732720331290,20.0,238.62,238.57,0.83596877]
[1732720331485,12.59039089,238.61,238.57,0.83596877]
[1732720331687,12.59039089,238.59,238.53,0.83597283]
[1732720331890,12.59039089,238.57,238.52,73.7]
[1732720332088,12.59039089,238.57,238.51,15.8243643]
[1732720332284,12.59039089,238.55,238.51,15.8243643]
[1732720332506,12.59039089,238.57,238.51,15.8243643]
[1732720332686,12.59039089,238.57,238.51,16.66048565]
[1732720332891,12.59039089,238.61,238.53,12.59039089]
[1732720333102,12.59039089,238.61,238.54,0.83600783]
[1732720333497,34.68569089,238.63,238.55,12.59039089]
[1732720333702,34.68569089,238.63,238.56,0.83599299]
[1732720334391,12.59039089,238.61,238.53,12.59039089]
[1732720334992,12.59039089,238.61,238.51,0.4914643]
[1732720334993,23.776884,238.53,238.51,0.4914643]
[1732720335196,12.59039089,238.52,238.51,0.4914643]
[1732720336717,14.68659089,238.52,238.51,0.4914643]
[1732720337587,20.0,238.52,238.51,0.4914643]
[1732720337801,14.68629089,238.56,238.51,0.4914643]
[1732720338125,2.0959,238.56,238.51,0.4914643]
[1732720338290,12.59039089,238.55,238.51,0.4914643]
[1732720338692,2.096,238.54,238.51,0.4914643]
[1732720338909,12.59039089,238.53,238.51,0.4914643]
[1732720339312,2.096,238.54,238.51,0.4914643]
[1732720339313,20.0,238.52,238.51,0.4914643]
[1732720339819,12.59039089,238.75,238.58,78.7]
[1732720340115,12.59039089,238.75,238.66,12.59039089]
[1732720340324,12.59039089,238.73,238.64,12.59039089]
[1732720340489,12.59039089,238.73,238.64,86.29039089]
[1732720340694,12.59039089,238.73,238.65,0.83570258]
[1732720340905,12.59039089,238.73,238.65,0.8357133]
[1732720341190,12.59039089,238.71,238.59,0.83566338]
[1732720341412,12.59039089,238.69,238.6,12.59039089]
[1732720341593,20.0,238.66,238.6,12.59039089]
[1732720342508,12.59039089,238.68,238.6,12.59039089]
[1732720342709,2.0949,238.67,238.6,12.59039089]
[1732720342889,12.59039089,238.68,238.6,0.83583477]
[1732720343086,12.59039089,238.68,238.6,13.42622566]
[1732720343289,12.59039089,238.66,238.58,13.42624849]
[1732720343843,20.0,238.63,238.56,12.59039089]
[1732720344022,12.59039089,238.64,238.56,12.59039089]
[1732720344201,12.59039089,238.66,238.56,12.59039089]
[1732720344807,2.0951,238.65,238.56,12.59039089]
[1732720344999,12.59039089,238.64,238.56,12.59039089]
[1732720345197,2.0951,238.65,238.58,12.59039089]
[1732720345887,2.0951,238.65,238.56,12.59039089]
[1732720346088,12.59039089,238.62,238.55,0.83591157]
[1732720346291,20.0,238.59,238.55,0.83591157]
[1732720346489,20.0,238.59,238.52,34.43659089]
[1732720346490,20.0,238.57,238.52,34.43659089]
[1732720346694,20.0,238.57,238.52,35.27274974]
[1732720346918,22.0958,238.57,238.52,35.27274974]
[1732720347496,20.0,238.61,238.56,12.59039089]
[1732720348104,20.0,238.61,238.56,13.42640491]
[1732720348293,20.0,238.61,238.58,12.59039089]
[1732720348503,22.0952,238.63,238.58,13.42634872]
[1732720348711,22.0952,238.63,238.58,12.59039089]
[1732720349309,20.0,238.61,238.56,12.59039089]
[1732720349518,20.0,238.61,238.54,12.59039089]
[1732720349698,20.0,238.59,238.54,12.59039089]
[1732720350526,20.0,238.6,238.56,12.59039089]
[1732720350726,2.0952,238.63,238.56,12.59039089]
[1732720350727,20.0,238.61,238.56,12.59039089]
[1732720351304,2.0955,238.6,238.56,12.59039089]
[1732720351519,12.59039089,238.64,238.56,12.59039089]
[1732720351520,2.0954,238.62,238.56,12.59039089]
[1732720351710,2.0954,238.62,238.57,0.83596585]
[1732720352217,2.0954,238.62,238.58,12.59039089]
[1732720353034,22.0952,238.64,238.6,12.59039089]
[1732720353522,20.0,238.67,238.62,12.59039089]
[1732720353723,2.095,238.66,238.62,12.59039089]
[1732720353914,2.095,238.66,238.6,12.59039089]
[1732720354124,19.92289089,238.66,238.58,12.59039089]
[1732720354921,20.0,238.63,238.58,12.59039089]
[1732720355307,2.0953,238.62,238.58,12.59039089]
[1732720356032,2.0953,238.62,238.52,21.8462]
[1732720356033,20.0,238.59,238.52,21.8462]
[1732720356204,20.0,238.57,238.52,34.43659089]
[1732720356405,20.0,238.57,238.52,12.59039089]
[1732720357223,20.0,238.59,238.54,12.59039089]
[1732720358505,20.0,238.57,238.52,13.42657]
[1732720358819,20.0,238.57,238.54,12.59039089]
[1732720359020,22.0954,238.61,238.56,12.59039089]
[1732720359924,22.0954,238.61,238.53,74.53610059]
[1732720360233,20.0,238.59,238.56,12.59039089]
[1732720360525,20.0,238.59,238.55,12.59039089]
[1732720361210,20.0,238.59,238.53,87.12649148]
[1732720361608,22.0957,238.58,238.53,87.12649148]
[1732720362223,22.0957,238.58,238.53,12.59039089]
[1732720362602,22.0957,238.58,238.55,12.59039089]
[1732720363012,22.0957,238.58,238.53,12.59039089]
[1732720364428,20.0,238.57,238.53,12.59039089]
[1732720364725,20.0,238.55,238.51,13.08185519]
[1732720365501,2.096,238.54,238.51,0.4914643]
[1732720365704,2.096,238.54,238.51,13.08185519]
[1732720366308,2.096,238.54,238.51,0.4914643]
[1732720369005,20.0,238.53,238.51,0.4914643]
[1732720369611,2.0962,238.52,238.51,0.4914643]
[1732720374215,2.0961,238.53,238.51,0.4914643]
[1732720377315,20.0,238.55,238.51,0.4914643]
[1732720377521,22.096,238.55,238.51,13.08185519]
[1732720378315,22.096,238.55,238.51,0.4914643]
[1732720378515,20.0,238.54,238.51,0.4914643]
[1732720379316,2.0961,238.53,238.51,0.4914643]
[1732720379631,20.0,238.52,238.51,0.4914643]
[1732720380009,2.0961,238.53,238.51,0.4914643]
[1732720381637,2.0959,238.56,238.51,0.4914643]
[1732720382525,20.0,238.54,238.51,0.4914643]
[1732720383622,2.0961,238.53,238.51,0.4914643]
[1732720385743,2.096,238.54,238.51,0.4914643]
[1732720387337,20.0,238.52,238.51,0.4914643]
[1732720387842,22.0962,238.52,238.51,0.4914643]
[1732720389032,45.873084,238.52,238.51,6.43e-05]
[1732720391819,22.0962,238.52,238.51,6.43e-05]
[1732720392021,30.19968457,238.52,238.51,6.43e-05]
[1732720392345,12.66576206,238.52,238.51,6.43e-05]
[1732720394071,7.334,238.61,238.51,6.43e-05]
[1732720394242,5.2386,238.61,238.51,6.43e-05]
[1732720394558,12.66576206,238.56,238.51,6.43e-05]
[1732720394754,12.66576206,238.56,238.51,0.83626483]
[1732720395139,12.66576206,238.52,238.51,6.43e-05]
[1732720396445,14.76196206,238.52,238.51,6.43e-05]
[1732720401059,2.0961,238.53,238.51,6.43e-05]
[1732720401564,12.66576206,238.52,238.51,6.43e-05]
[1732720402660,14.76196206,238.52,238.51,6.43e-05]
[1732720404243,14.76186206,238.54,238.51,6.43e-05]
[1732720404453,12.66576206,238.54,238.51,6.43e-05]
[1732720404772,20.0,238.52,238.51,6.43e-05]
[1732720405261,12.66576206,238.56,238.51,6.43e-05]
[1732720405451,12.66576206,238.56,238.51,0.83622489]
[1732720406156,14.76146206,238.58,238.51,74.53622489]
[1732720406654,12.66576206,238.56,238.51,74.53622489]
[1732720407167,20.0,238.55,238.51,74.53622489]
[1732720407564,12.66576206,238.58,238.51,74.53622489]
[1732720407774,5.2372,238.68,238.56,86.36576206]
[1732720407958,12.66576206,238.64,238.57,0.83592805]
[1732720408158,12.66576206,238.62,238.57,0.83592805]
[1732720408758,14.76096206,238.64,238.57,0.83592805]
[1732720408948,12.66576206,238.62,238.57,0.83592805]
[1732720410152,20.0,238.59,238.57,74.53592805]
[1732720410372,14.76096206,238.64,238.57,74.53592805]
[1732720410569,20.0,238.61,238.57,74.53592805]
[1732720410874,20.0,238.59,238.57,74.53592805]
[1732720411578,12.66576206,238.68,238.58,12.66576206]
[1732720411787,12.66576206,238.68,238.6,34.59216206]
[1732720411949,14.76056206,238.68,238.61,0.83576671]
[1732720412769,14.76056206,238.68,238.61,74.53576671]
[1732720412967,12.66576206,238.66,238.61,74.53576671]
[1732720413773,20.0,238.63,238.61,74.53576671]
[1732720414359,20.0,238.63,238.61,73.7]
[1732720414974,2.0953,238.62,238.61,73.7]
[1732720415278,20.0,238.63,238.61,73.7]
[1732720416261,20.0,238.63,238.61,74.5358432]
[1732720417487,20.0,238.66,238.61,74.5358432]
[1732720417688,12.66576206,238.65,238.61,74.5358432]
[1732720417971,12.66576206,238.65,238.61,73.7]
[1732720418367,12.66576206,238.63,238.61,73.7]
[1732720418567,12.66576206,238.65,238.61,73.7]
[1732720419174,14.76086206,238.65,238.61,73.7]
[1732720420284,12.66576206,238.65,238.61,73.7]
[1732720420579,12.66576206,238.63,238.61,73.7]
[1732720421771,12.66576206,238.63,238.52,74.5360572]
[1732720421970,12.66576206,238.59,238.52,74.5360572]
[1732720422472,20.0,238.6,238.55,86.36576206]
[1732720422786,20.0,238.6,238.56,0.8359659]
[1732720422970,12.66576206,238.63,238.56,0.8359659]
[1732720423170,20.0,238.6,238.56,0.8359659]
[1732720423487,12.66576206,238.61,238.55,73.7]
[1732720423666,12.66576206,238.61,238.56,0.83601917]
[1732720423866,12.66576206,238.63,238.56,0.83601917]
[1732720424166,20.0,238.64,238.56,74.53601917]
[1732720424560,20.0,238.62,238.57,12.66576206]
[1732720424774,20.0,238.62,238.58,0.83589155]
[1732720425187,12.66576206,238.63,238.56,73.7]
[1732720425487,20.0,238.62,238.57,74.5359322]
[1732720425679,12.66576206,238.71,238.61,86.36576206]
[1732720425983,12.66576206,238.71,238.62,0.83573468]
[1732720426366,12.66576206,238.69,238.62,74.53573468]
[1732720428076,12.66576206,238.67,238.62,74.53573468]
[1732720428275,2.0946,238.71,238.62,74.53573468]